Workbook

Sheet Cover Page
D1: Add company logo
N2: Version 23.4a (for incinerators) - 15/11/2023
N4: Note that there is another version of this template available for co-incinerators
B8: Add photo
N13: Notes:
N14: This template may require adjustments by individual operators to meet specific reporting requirements as defined in the site Permit(s)
B29: Annual Performance Report 2023
B31: Permit EPR/CP3031SX
B33: Slough Heat and Power Station
B37: Slough Heat and Power Limited
B39: Year: | C39: 2023
B41: Address: | C41: 342 Edinburgh Avenue, Slough Trading Estate, SL1 4TU
B43: Tel: | C43: O1753213201
B45: Email:
B47: Prepared by: | C47: Andrew Kershaw | F47: Position: | G47: Chemist
B49: Approved by: | F49: Position:
B51: Version: | C51: 1
B53: Issue Date: | C53: 2024-01-21

Sheet Contents
A1: =+'Cover Page'!$B$29 -> Annual Performance Report 2023 | E1: =+'Cover Page'!$B$33 -> Slough Heat and Power Station
A3: Contents | K3: Notes:
A4: Section | B4: Subject | H4: Page | K4: Section references and Page nos. to be inserted
B5: Facility Information | K5: Sections and Subjects may require adjustment by individual operators to meet specific reporting requirements as defined in the sites Permit(s)
B6: Operational Data
B7: Operational Summary
B8: Performance Form 1
B9: Energy Form 1
B10: Permit Compliance
B11: Improvements
B12: Public Liasion
B13: Carbon dioxide and nitrous oxide emissions
B14: Residue Quality
B15: Emissions to Water
B16: Emissions to Air (periodically monitored)
B17: Emissions to Air (continuously monitored)
B18: Hydrogen Chloride emissions
B19: Sulphur Dioxdie emsissions
B20: Oxides of Notrigen emissions
B21: Total Organic Carbon emissions
B22: Particulate Matter emissions
B23: Carbon Monoxide emissions
B24: Ammonia emissions
A27: Version Control
A28: Section | B28: Information | H28: Date
A29: 1 | B29: Published | H29: 2024-01-26
B30: Revised Version 1 | H30: 2024-02-28
A35: Distribution
A36: Copy | B36: Name, Role | H36: No.
A37: P/E | B37: Andy Kershaw, Chemist | H37: 2
A38: E | B38: SSE Distributed Energy | H38: 1
A39: E | B39: Matt Rice, EA | H39: 1
A40: E | B40: James Thatcher, Process Support Manager | H40: 1
A41: E | B41: Ishbel Cowie, Environmental Graduate | H41: 1
A45: This report is required under the Industrial Emissions Directive’s Article 55(2) requirements on reporting and public information on waste incineration plants and co-incineration plants, which require the operator to produce an annual report on the functioning and monitoring of the plant and make it available to the public.

Sheet Facility Info
A1: =+'Cover Page'!$B$29 -> Annual Performance Report 2023 | E1: =+'Cover Page'!$B$33 -> Slough Heat and Power Station
A3: Plant Description and Design | K3: Notes:
A5: The installation is a Combined Heat and Power (CHP) plant comprising a waste incineration plant and package boiler and is situated within the Slough Trading Estate approximately 2 miles from the centre of Slough. The incinerator (Boiler 17) has a thermal input capacity of approximately 69 MW(th). Waste fuel, mainly waste wood, waste paper and plastic (RDF) is burnt on a conventional solid-fuel grate supported by natural gas. Air Emissions are released to atmosphere via a 104m stack. Electrical energy is generated via 2 steam turbines (TA17,TA16) with a combined generation capacity of 21 MW(e) and thermal energy is distributed via the heat network (hot water and steam) to a variety of commercial and industrial customers. The package boiler plant has a themal input capacity of 22MW(th) and is used to support the incinerator plant to provide steam for the heat network. SHP operates a private water network sourced from local boreholes which is used to provide the majority of process water, an additional mains water source is supplied from a public utility that is exercised in the event of a disruption to the private mains. | K5: Include summary of plant design, design capacity, no. of combustion lines, electrical and heat capacity and any other general information that descibes the facility, its location and purpose
A20: Summary of Operational Processes and Procedures
A22: The installation comprises of solid fuel storage facilities, feedwater treatment, combustion activities (vibrating grate solid fuel boiler, flue gas (PAC and lime) abatement system as well as ash distribution mechanisms), 2 energy generation turbines, and cooling water systems with natural draught cooling towers. Operational running of the plant is controlled by a continuously manned control room which includes continuous emission montoring systems (CEMs) and is managed by operations, maintenance and process support departments under SSE management procedures and systems. | K22: Include summary of key processes and procedures such as (but not limited to); waste reception, control rooms, grate, bed and bolier, energy & heat generation, cooling systems, residue management, emission controls, health and safety systems, maintenance

Sheet Operational Data
A1: =+'Cover Page'!$B$29 -> Annual Performance Report 2023 | E1: =+'Cover Page'!$B$33 -> Slough Heat and Power Station
A3: Operational Data
A4: Plant Size | B4: 120000 | D4: tonnes pa | E4: 91 | F4: MWth | G4: 21 | H4: MWe | J4: Notes:
A5: No. of combustion lines | B5: 1 | D5: No. of Turbines: | F5: 2 | J5: * - RDF to include SRF
J6: ** - Combusted tonnage = tonnes delivered in period + (tonnes in bunker at start of period – tonnes in bunker at end of period), or equivalent calculation depending on plant type
A7: Waste types received | B7: Unit | C7: Q1 | D7: Q2 | E7: Q3 | F7: Q4 | G7: Year Total | H7: %
A8: Household / Local Authority | B8: tonnes | G8: =SUM(C8:F8) -> 0 | H8: =IF(G8>0,G8/$G$18,"-") -> -
A9: Commercial & Industrial | G9: =SUM(C9:F9) -> 0 | H9: - | J9: *** - CHP plants only
A10: Hazardous | G10: 0 | H10: - | J10: **** Availability Definition: 'the availability of a line is to be calculated by the number of hours the line reported Continuously Monitored emission levels to the Regulator through the calendar year divided by the total number of hours in that year. The overall plant availability is calculated as the Mean of all lines in the plant. For clarity this includes periods of abnormal operation.' Rationale: The primary function of an Energy from Waste facility is the disposal of waste. It follows therefore that the availability of a plant is determined by the period of time a facility spends undertaking this activity.
A11: Clinical | G11: 0 | H11: -
A12: Waste wood (biomass) | C12: 34022.49 | D12: 21992.95 | E12: 33451.716 | F12: 35444.25 | G12: 124911.406 | H12: 1
A13: Refuse Derived Fuel * - H'hold/LA | G13: =SUM(C13:F13) -> 0 | H13: -
A14: Refuse Derived Fuel * - C&I | G14: 0 | H14: -
A15: Other [Please specify] | G15: 0 | H15: -
A16: Other [Please specify] | G16: 0 | H16: -
A17: Other [Please specify] | G17: 0 | H17: -
A18: Total waste received | C18: =SUM(C8:C17) -> 34022.49 | D18: =SUM(D8:D17) -> 21992.95 | E18: =SUM(E8:E17) -> 33451.716 | F18: =SUM(F8:F17) -> 35444.25 | G18: 124911.406
A19: Rejected Waste | G19: =SUM(C19:F19) -> 0 | H19: =IF(G19>0,G19/$G$18,"-") -> -
A20: Unprocessed waste transferred out | G20: =SUM(C20:F20) -> 0 | H20: =IF(G20>0,G20/$G$18,"-") -> -
A21: Total waste combusted ** | C21: 33317 | D21: 22189 | E21: 33798 | F21: 35369 | G21: =SUM(C21:F21) -> 124673
J22: Password for protected cells A password has been set to prevent accidental editing of cells with formulae. If you still need to make an edit for some reason then the password = 1234
A23: Energy Usage / Export | B23: Unit | C23: Q1 | D23: Q2 | E23: Q3 | F23: Q4 | G23: Year Total | H23: KWh/te
A24: Power Generated | B24: MWh | C24: 20674 | D24: 15265 | E24: 24889 | F24: 21997 | G24: =SUM(C24:F24) -> 82825 | H24: =IF(G24>0,G24*1000/$G$21,"-") -> 664.337908
A25: Power Exported | C25: 17862 | D25: 13194 | E25: 21952 | F25: 19201 | G25: =SUM(C25:F25) -> 72209 | H25: =IF(G25>0,G25*1000/$G$21,"-") -> 579.1871536
A26: Power Used on site | G26: =SUM(C26:F26) -> 0 | H26: =IF(G26>0,G26*1000/$G$21,"-") -> -
A27: Power Imported | C27: 2813 | D27: 2070 | E27: 2938 | F27: 2796 | G27: =SUM(C27:F27) -> 10617 | H27: =IF(G27>0,G27*1000/$G$21,"-") -> 85.15877536
A28: Parasitic Load | B28: % | C28: =IF(C24>0,1-C25/(C24+C27),"-") -> 0.2394941883 | D28: =IF(D24>0,1-D25/(D24+D27),"-") -> 0.2388808768 | E28: =IF(E24>0,1-E25/(E24+E27),"-") -> 0.2111258849 | F28: =IF(F24>0,1-F25/(F24+F27),"-") -> 0.2255475336 | G28: =IF(G24>0,1-G25/(G24+G27),"-") -> 0.2272318658
A29: Thermal Energy Produced *** | B29: MWh | G29: =SUM(C29:F29) -> 0 | H29: =IF(G29>0,G29*1000/$G$21,"-") -> -
A30: Thermal Energy Exported *** | C30: 13276 | D30: 10404 | E30: 11324 | F30: 11118 | G30: =SUM(C30:F30) -> 46122 | H30: =IF(G30>0,G30*1000/$G$21,"-") -> 369.9437729
A31: R1 value (if applicable) | B31: R1
A33: Waste Disposal & Recovery | B33: Unit | C33: Q1 | D33: Q2 | E33: Q3 | F33: Q4 | G33: Year Total | H33: % inputs
A34: APC Residues - produced | B34: tonnes | C34: 607.124 | D34: 455.34 | E34: 685.85 | F34: 566.06 | G34: =SUM(C34:F34) -> 2314.374 | H34: =IF(G34>0,G34/$G$21,"-") -> 0.01856355426
A35: IBA - produced | C35: 1391.611 | D35: 1028.47 | E35: 1588.32 | F35: 1669.39 | G35: 5677.791 | H35: 0.04554146447
A36: Metals recycling | C36: 30.52 | D36: 102.54 | E36: 50.34 | F36: 51.26 | G36: 234.66 | H36: 0.001882203845
A37: Fly Ash | C37: 446.661 | D37: 312.25 | E37: 381.98 | F37: 467.8 | G37: 1608.691 | H37: 0.01290328299
A38: Other | C38: 0 | D38: 0 | E38: 0 | F38: 0 | G38: 0 | H38: -
A39: Other | C39: 0 | D39: 0 | E39: 0 | F39: 0 | G39: 0 | H39: -
A41: Raw Material Usage | B41: Unit | C41: Q1 | D41: Q2 | E41: Q3 | F41: Q4 | G41: Year Total | H41: kg or Ltr /te
A42: Mains Water | B42: m3 | C42: 187 | D42: 487 | E42: 491 | F42: 301 | G42: =SUM(C42:F42) -> 1466 | H42: =IF(G42>0,(G42/$G$21)*1000,"-") -> 11.75876092
A43: Other Water | B43: m3 | C43: 53886 | D43: 81314 | E43: 152041 | F43: 106700 | G43: 393941 | H43: =IF(G43>0,(G43/$G$21)*1000,"-") -> 3159.794021
A44: Ammonia | B44: kgs | C44: 0 | D44: 0 | E44: 0 | F44: 0 | G44: 0 | H44: =IF(G44>0,G44/$G$21,"-") -> -
A45: Urea | B45: kgs | C45: 2176 | D45: 7616 | E45: 8704 | F45: 8704 | G45: =SUM(C45:F45) -> 27200 | H45: =IF(G45>0,G45/$G$21,"-") -> 0.2181707346
A46: Activated Carbon | B46: tonnes | C46: 2 | D46: 1 | E46: 2 | F46: 1 | G46: 6 | H46: =IF(G46>0,G46/$G$21,"-") -> 4.812589735e-05
A47: Lime / hydrated lime | B47: tonnes | C47: 466 | D47: 336 | E47: 587 | F47: 494 | G47: =SUM(C47:F47) -> 1883 | H47: =IF(G47>0,G47/$G$21,"-") -> 0.01510351078
A48: Fuel oil | B48: ltrs | C48: 10542 | D48: 6561 | E48: 10781 | F48: 11305 | G48: 39189 | H48: =IF(G48>0,G48/$G$21,"-") -> 0.3143342985
A49: Gas | B49: Kcf | C49: 8286.2 | D49: 16702.6 | E49: 9265.4 | F49: 8163.6 | G49: 42417.8
A50: Other | G50: 0
A52: Summary | B52: Line/Unit | C52: Q1 | D52: Q2 | E52: Q3 | F52: Q4 | G52: Year Total | I52: Hrs in year
A53: Availability of waste combustion by line, hrs **** | B53: =+B5 -> 1 | C53: 1933.5 | D53: 1360 | E53: 2067 | F53: 2024.5 | G53: =SUM(C53:F53) -> 7385 | H53: =+G53/$I$53 -> 0.8430365297 | I53: 8760
A54: Overall Availability, mean avg. of all lines, hrs | G54: =AVERAGE(G53:G53) -> 7385 | H54: =+G54/$I$53 -> 0.8430365297
A55: Hours of turbine operations, hrs | B55: 1 | C55: 1933.5 | D55: 1360 | E55: 2067 | F55: 2024.5 | G55: 7385 | H55: =+G55/$I$53 -> 0.8430365297
A56: Hours of turbine operations, hrs | B56: 2 | C56: 1933.5 | D56: 1360 | E56: 2067 | F56: 2024.5 | G56: 7385 | H56: =+G56/$I$53 -> 0.8430365297
A57: Hours of heat / steam export | G57: 0 | H57: =IF(B57>0,G56/I53,"n/a") -> n/a
A58: Net Calorific Value of waste | B58: MJ/kg | C58: 14.798 | D58: 16.205 | E58: 16.317 | F58: 14.456
A59: Abnormal Events | B59: qty. | C59: 0 | D59: 1 | E59: 0 | F59: 0 | G59: 1 | H59: =IF(G59>0,"yes","no") -> yes
A60: Abnormal operation | B60: hours | C60: 0 | D60: 2 | E60: 0 | F60: 0 | G60: 2 | H60: =+(G60)/I53 -> 0.0002283105023
A61: Permit Breaches | B61: qty. | C61: 0 | D61: 0 | E61: 0 | F61: 1 | G61: 1 | H61: =IF(G61>0,"yes","no") -> yes

Sheet Operational Summary
A1: =+'Cover Page'!$B$29 -> Annual Performance Report 2023 | E1: =+'Cover Page'!$B$33 -> Slough Heat and Power Station
A3: Summary of Plant Operations and Maintenance during the reporting year | K3: Notes:
A5: During 2023 124,673 tonnes of waste wood and 417 tonnes of gas was utilised on B17 (EfW ininerator) to generate 82,825 MWh of electricity and contribute to 46,122 MWh of steam/hot water produced by the site overall. The performance of plant has improved significantly based on previous years, with fewer periods of unplanned maintenance and longer operational hours. The boiler was off-line between mid-April to mid-May to complete the scheduled annual outage works. The significant maintenance undertaken in this period included upgrading the economiser banks to finned design. | K5: Include summary of key operational and/or mainteanance activity undertaken in the year, such as any major component upgrades and/or replacements
A29: Summary of Residue Handling for the reporting year
A31: The site generated 9601 tonnes of residue this year. This included 2314 tonnes of APC residue, 5678 tonnes of bottom ash and 1609 of fly ash. These are classified as hazardous and transported via tankers/tippers to Peterborough under waste code D09. | K31: Include in here a summary of residue handling regimes and destinations

Sheet Perf. Form 1
A1: =+'Cover Page'!C39 -> 2023 | B1: Annual Reporting Performance Form 1
A3: =+'Cover Page'!B31 -> Permit EPR/CP3031SX | F3: Operator: | G3: =+_xlfn.SINGLE('Cover Page'!B37) -> Slough Heat and Power Limited
A4: Facility: | B4: =+'Cover Page'!B33:I33 -> Slough Heat and Power Station | F4: Form: | G4: Performance 1
A6: Reporting Period from: | D6: 2023-01-01 | F6: to: | G6: 2023-12-31
A8: =+A1 -> 2023 | B8: Annual Reporting of Waste Disposal and Recovery
A9: Waste Description | C9: Disposal Route(s) | E9: Disposal Tonnes | G9: Recovery Tonnes | I9: % / tonne of waste incinerated
A10: 1) Hazardous Wastes
A11: APC Residues | C11: D09 | E11: 2314.374 | G11: 0 | I11: =IF((E11+G11)>0,(E11+G11)/'Operational Data'!$G$21, "-") -> 0.01856355426
A12: IBA | C12: D09 | E12: 5677.791 | G12: 0 | I12: =IF((E12+G12)>0,(E12+G12)/'Operational Data'!$G$21, "-") -> 0.04554146447
A13: FGT and Fly Ash | C13: D09 | E13: 1608.691 | G13: 0 | I13: =IF((E13+G13)>0,(E13+G13)/'Operational Data'!$G$21, "-") -> 0.01290328299
I14: =IF((E14+G14)>0,(E14+G14)/'Operational Data'!$G$21, "-") -> -
A15: Total Hazardous Waste | E15: =SUM(E11:F14) -> 9600.856 | G15: =SUM(G11:H14) -> 0 | I15: =IF((E15+G15)>0,(E15+G15)/'Operational Data'!$G$21, "-") -> 0.07700830172
A17: 2) Non-Hazardous Wastes
A18: IBA | I18: =IF((E18+G18)>0,(E18+G18)/'Operational Data'!$G$21, "-") -> -
A19: Ferrous Metal | C19: R04 | E19: 0 | G19: 234.7 | I19: =IF((E19+G19)>0,(E19+G19)/'Operational Data'!$G$21, "-") -> 0.001882524685
A20: Process Water | C20: D09 | E20: 27 | G20: 0 | I20: =IF((E20+G20)>0,(E20+G20)/'Operational Data'!$G$21, "-") -> 0.0002165665381
A21: General Waste | C21: R03 | E21: 0 | G21: 34.3 | I21: =IF((E21+G21)>0,(E21+G21)/'Operational Data'!$G$21, "-") -> 0.0002751197132
A22: Oily Water | C22: D09 | E22: 10.34 | G22: 0 | I22: =IF((E22+G22)>0,(E22+G22)/'Operational Data'!$G$21, "-") -> 8.29369631e-05
A23: Total Non-Hazardous Waste | E23: =SUM(E18:F22) -> 37.34 | G23: =SUM(G18:H22) -> 269 | I23: =IF((E23+G23)>0,(E23+G23)/'Operational Data'!$G$21, "-") -> 0.002457147899
A24: TOTAL WASTE | E24: =+E23+E15 -> 9638.196 | G24: =+G23+G15 -> 269 | I24: =IF((E24+G24)>0,(E24+G24)/'Operational Data'!$G$21, "-") -> 0.07946544962
A26: Operator’s comments :
A27: The above constitute the main disposal waste transfer streams from site, a more detailed assessment is provided on the quarterly waste returns. Additionally process effluent is discharged under consent through foul sewer which is not included here.
A31: =+A1 -> 2023 | B31: Annual Reporting of Water and Other Raw Material Usage
A32: Raw Material | E32: Usage | G32: Unit | H32: Specific Useage | J32: Unit
A33: Mains Water | E33: =+'Operational Data'!G42 -> 1466 | G33: m3 | H33: =IF(E33>0,E33/'Operational Data'!$G$21,"-") -> 0.01175876092 | J33: m3/te
A34: Total Water | E34: =+'Operational Data'!G43+'Operational Data'!G42 -> 395407 | G34: m3 | H34: =IF(E34>0,E34/'Operational Data'!$G$21,"-") -> 3.171552782 | J34: m3/te
A35: Urea / Ammonia | E35: =+'Operational Data'!G45 -> 27200 | G35: kg | H35: =IF(E35>0,E35/'Operational Data'!$G$21,"-") -> 0.2181707346 | J35: kg/te
A36: Activated Carbon | E36: =+'Operational Data'!G46 -> 6 | G36: kg | H36: =IF(E36>0,E36/'Operational Data'!$G$21,"-") -> 4.812589735e-05 | J36: kg/te
A37: Lime / hydrated lime / Sodium Bicarb. | E37: =+'Operational Data'!G47 -> 1883 | G37: kg | H37: =IF(E37>0,E37/'Operational Data'!$G$21,"-") -> 0.01510351078 | J37: kg/te
A39: Operator’s comments :
A40: The mains water referes to the public water supply, the majority of the water consumed is provided by the SHP private water network.
A43: =+A31 -> 2023 | B43: Annual Reporting of other performance indicators
A44: Parameter | C44: Results by Line
C45: A1 | D45: A2 | E45: A3 | F45: A4 | G45: A5 | I45: Turbine 1 | J45: Turbine 2
A46: Operating hours for the year, hours | C46: 7385 | I46: 7385 | J46: 7385
A47: Number of periods of abnormal operation, qty. | C47: 1
A48: Cumulative hours of abnormal operation for this year, hours | C48: 2
A50: Operator’s comments :
A51: The incinerator plant underwent its planned outage between mid-April to mid-May (approx 30 days) for scheduled maintenance
A54: Signed: | B54: A. KERSHAW | G54: Date: | H54: 2024-01-24

Sheet Energy Form 1
A1: =+'Cover Page'!C39 -> 2023 | B1: Annual Reporting of Energy Usage/Export
A3: =+'Cover Page'!B31 -> Permit EPR/CP3031SX | F3: Operator: | G3: =+_xlfn.SINGLE('Cover Page'!B37) -> Slough Heat and Power Limited
A5: Facility: | B5: =+'Cover Page'!B33:I33 -> Slough Heat and Power Station | F5: Form: | G5: Energy 1
A7: Reporting Period from: | D7: =+'Perf. Form 1'!D6:E6 -> 2023-01-01 | F7: to: | G7: =+'Perf. Form 1'!G6:H6 -> 2023-12-31
A9: Energy Source | D9: Energy Usage | F9: Unit | G9: Specific Useage (KWh/tonne incinerated
A10: Electricity Produced | D10: =+'Operational Data'!G24 -> 82825 | F10: MWh | G10: =+'Operational Data'!H24 -> 664.337908
A11: Electricity Imported | D11: =+'Operational Data'!G27 -> 10617 | F11: MWh | G11: =+'Operational Data'!H27 -> 85.15877536
A12: Electricity Exported | D12: =+'Operational Data'!G25 -> 72209 | F12: MWh | G12: =+'Operational Data'!H25 -> 579.1871536
A13: Gas Oil | F13: tonnes
A14: Steam/hot water exported | D14: =+'Operational Data'!G30 -> 46122 | F14: GWh | G14: =+'Operational Data'!H30 -> 369.9437729
A18: Operator’s comments :
A19: Energy usage and production has significantly improved on typical years due to improved reliability of the incineration process.
A29: Signed: | B29: A> KERSHAW | G29: Date: | H29: 2024-01-24

Sheet Permit Compliance
A1: =+'Cover Page'!$B$29 -> Annual Performance Report 2023 | E1: =+'Cover Page'!$B$33 -> Slough Heat and Power Station
A3: Summary of Permit Compliance
A5: Compliance with permit limits for continuously monitored pollutants
A7: The plant met its emission limits as shown in the table below:
A8: Substance | C8: Percentage time compliant during operationNote 1 | L8: Notes:
C9: Half-hourly limit | F9: Daily limit | L9: Note 1: Please report to 2 decimal places, i.e. xx.xx% Note 2: Please provide a brief summary of each notification or non-compliance in the table (rather than just referring to notifications that were sent to the Regulator), including stating the value of measured result for any ELV exceedances.
A10: Particulates | C10: 1 | F10: 1
A11: Oxides of nitrogen | C11: 1 | F11: 1
A12: Sulphur dioxide | C12: 1 | F12: 1
A13: Carbon monoxide | C13: 100% 95% of 10-min averages | F13: 1
A14: Total organic carbon | C14: 1 | F14: 1
A15: Hydrogen chloride | C15: 1 | F15: 1
A16: Hydrogen fluoride | C16: N/A | F16: N/A
A19: Summary of any notifications or non-compliances under the permit
A20: Date | B20: Summary of notification or non-compliance [including Line/Reference]Note 2 | E20: Reason | H20: Measures taken to prevent reoccurrence
A21: 2023-03-30 | B21: Momentary loss of furnace temperature (<800degC) | E21: Fuel blockage/Burner Delay
A22: 2023-12-31 | B22: B17 total annual throughput exceeded permitted limit by 4,674 tonnes | E22: Annual calculations were based on estimates prior to reconcling of weighbridge data at year end, as well as new tube banks resulting in a greater temporary performance improvement than expected. Unlikely to be repeated in coming years. | H22: New weighbridge system in place and close monitoring of daily data once 90% of the permitted limit is reached. Considering application for an increase in the permitted annual throughput limit.
A27: Summary of any complaints received and actions to taken to resolve them.
A28: Date | B28: Summary of complaint [including Line/Reference] | E28: Reason * | H28: Measures taken to prevent reoccurrence
A29: 2023-12-13 | B29: Dust Release observed by member of public | E29: Under Investigation (EA graphic) | H29: Under Investigation - Operations Informed
E34: * including whether substantiated by the operator or the EA

Sheet Improvements
A1: =+'Cover Page'!$B$29 -> Annual Performance Report 2023 | E1: =+'Cover Page'!$B$33 -> Slough Heat and Power Station
A3: Summary of Plant Improvements
A5: Summary of any efficiency improvements that have been completed within the year.
A6: Replacement of finned tubed economiser bundles in the boiler resulting in increased reliability and energy efficiency.
A16: Summary of any permit improvement conditions that have been completed within the year and the resulting environmental benefits.
A17: IC 2 - Extended assessment of air emisssions to demonstrate that Mercury releases are low and stable IC 3 - Extended assessment of air emissions to demonstrate that Dioxin releases are low and stable. IC 4 - Evaluation of energy efficiency of the plant and assesment to identify potential improvements to efficiency going forward.
A27: Summary of any changes to the plant or operating techniques which required a variation to the permit and a summary of the resulting environmental impact.
A28: Minor variation applied to extend waste codes to potential contamination from the waste wood supply market following consultation from the EA. Changes will involve increased surveillance of wood supply inputs upstream at the supply source and during process.
A38: Summary of any other improvements made to the plant or planned to be made and a summary of the resulting environmental benefits.
A39: Following BREF review and permit variation in 2022, replacement CEMs were installed in 2023 this includes additional species, N2O, NH3 and CO2. Additionally SNCR (selective non-catalytic reductionl) test equipment was deployed on the plant using Urea to inhibit NOx formation. Going forward a complete SNCR is currently under design to maintain NOx emissions to acceptable levels.

Sheet Public Liasion
A1: =+'Cover Page'!$B$29 -> Annual Performance Report 2023 | E1: =+'Cover Page'!$B$33 -> Slough Heat and Power Station
A3: Details of Public & Stakeholder Liasion
A5: Summary of events held during the reporting year.
A6: Date | C6: Description
A16: List of events planned for next year
A17: Date | C17: Description
A29: If you wish to be involved in the public liasion programme, please contact _________________

Sheet CO2 N2O
A1: =+'Cover Page'!$B$29 -> Annual Performance Report 2023 | C1: =+'Cover Page'!$B$33 -> Slough Heat and Power Station
A3: Carbon dioxide emissions and biogenic content of waste inputs | F3: Notes:
A5: Carbon dioxide emissions (all types of plant)
B6: Annual mass of carbon dioxide released | C6: tonnes | D6: 197119.1722
B7: Annual mass of carbon dioxide released per tonne of waste burned | C7: t CO2 / t waste | D7: =D6/'Operational Data'!G21 -> 1.581089508
B8: Annual mass of carbon dioxide released per MWh of energy exported | C8: t CO2 / MWh export | D8: =D6/('Operational Data'!G25+'Operational Data'!G30) -> 1.665828669
B9: Description of how annual carbon dioxide mass emission has been calculated. See Note 1 | C9: Derived from GHG inventory reporting. | F9: Note 1: Where available, data from CO2 CEMS should be used. Otherwise, only where no CEMS data is available, a suitable emissions factor should be used based on the tonnage of waste burned e.g.0.942 tCO2/t waste as per Tolvik report 2022, or other justified emissions factor - refer to embedded Environment Agency guidance note above or updated version for suitable descriptive text.
A10: Nitrous oxide emissions (only plants which use ammonia or urea to abate NOx emissions)
B11: Annual mass emissions of nitrous oxide | C11: tonnes N2O | D11: 12.23
B12: Description of how annual nitrous oxide mass emission has been calculated See Note 2 | C12: Use of emission factor (N2O CEMs were only partially availble in 2023) | F12: Note 2: Where available, data from N2O CEMS should be used. If no CEMS data is available, from periodic monitoring. Otherwise, a suitable emissions factor should be used based on the tonnage of waste burned e.g. 0.0981 kgN20/t waste as per 2021 Pollution Inventory data for plants with urea-based SNCR - refer to embedded Environment Agency guidance note above or updated version for suitable descriptive text.
A13: Total annual carbon dioxide and nitrous oxide emissions. See Note 3. | C13: tonnes CO2e | D13: =D6+(D11*298) -> 200763.7122 | F13: Note 3: Total annual carbon dioxide and nitrous oxide emissions reported as carbon dioxide equivalent where 1 tonne nitrous oxide is equivalent to 298 tonne carbon dioxide
A14: Biogenic CO2 emissions (See Note 4) | F14: Note 4: Only plants combusting residual municipal waste, refuse derived fuel or solid recovered fuel
B15: Percentage of total carbon dioxide emissions arising from biogenic waste | C15: % | D15: 0.954
B16: No. of measurements undertaken | C16: Number | D16: 11
B17: Description of how percentage biogenic carbon dioxide emissions have been measured or calculated. See Note 5 | C17: Derived from GHG inventory reporting, site remains an ETS participant for CO2 releases. The above figure is preliminary but of reasonably accuracy - awaiting final fuel analysis for Dec '23 | F17: Note 5: Examples include direct measurement via C14 method or BIOMA software - refer to embedded Environment Agency guidance note above or updated version for suitable descriptive text, quoting standards where relevant. Otherwise, as an approximation (and in lieu of any more accurate metrics which may be developed in future), the measured or estimated biogenic fraction by net calorific value can be assumed to be the same as the biogenic CO2 fraction of the total CO2 emissions from the plant.
A18: Biogenic fraction of waste feedstock (See Note 4)
B19: Yearly average biogenic percentage of the waste by gross calorific value (GCV)** | C19: % | D19: 0.963
B20: If sampling undertaken, no. of samples used to ascertain average biogenic % above | C20: Number | D20: 11
B21: Description of how biogenic percentage (by NCV) has been calculated or estimated. See Note 6 | C21: Obtained from testing criteria from OFGEM guidance note - Renewables Obligation: template methodology for measuring fossil derived contamination within waste wood. (Average based on 11 monthly samples - awaiting final Dec analysis) | F21: Note 6: Where available, data from waste sampling should be used; otherwise, an estimated figure with justification can be used, or a figure assumed on the basis of a national average e.g. 2017 WRAP data for residual waste of 51.8% biogenic energy content - refer to embedded Environment Agency guidance note above or updated version for suitable descriptive text, quoting standards where relevant.
B23: Comments:

Sheet Residue Quality
A1: =+'Cover Page'!$B$29 -> Annual Performance Report 2023 | E1: =+'Cover Page'!$B$33 -> Slough Heat and Power Station
A3: Residue Quality Monitoring Requirements
A5: Summary of monitoring undertaken and compliance
A6: Monitoring of all ash streams using internal SHP document: WI-SLGH-SHE-001-ENV5-EMS-22 Ash Sampling. EA Guidance 'TGN M4'. Analysis undertaken by external laboratory.
A8: Permit compliance monitoring was conducted on all ash (residue) streams with additional core hazardous property assesments underrtaken on the IBA sample(s)
A13: Commentary on any specific events
A14: Date & Event | C14: Description
A27: Residue Quality Monitoring Results
A28: Parameter (unit) | C28: Limit | D28: Normal Operation
D29: Bottom ash | F29: APC Residues
A30: Loss on Ignition (average %) | C30: <5% | D30: 1.22
A31: Total Organic Carbon (average %) | C31: <3% | D31: 1.28
A32: No. of Assessments Undertaken | C32: --- | D32: 4 | F32: 4
A33: No. of Hazardous Results | C33: --- | D33: 4
A35: Comments :
A36: SHP has two bottom ash streams, oversize (>25mm) and undersize (<25mm). The results above pertian to the undersize fraction which has higher LOI and TOC levels. The average is based on 4 assesments taken over the year (quarterly).

Sheet Water
A1: =+'Cover Page'!$B$29 -> Annual Performance Report 2023 | E1: =+'Cover Page'!$B$33 -> Slough Heat and Power Station
A3: Emissions to Water
A5: Summary of monitoring undertaken and compliance
A6: The site does not emit to controlled waters, so no analytical assesment was undertaken. Qualitative (visual) checks are carried out periodically for oil and grease with no indications recorded this year.
A8: The site does emit to foul sewer, this is controlled by a discharge to trade effluent consent and analysis is undertaken independently by the water utility.
A13: Commentary on any specific events
A14: Date & Event | C14: Description
A22: Emissions to Water / Sewer
A23: Parameter | D23: Monitoring Frequency | F23: Limit | G23: Target | H23: Max. | I23: Average

Sheet Air (periodic)
A1: =+'Cover Page'!$B$29 -> Annual Performance Report 2023 | E1: =+'Cover Page'!$B$33 -> Slough Heat and Power Station
A3: Emissions to Air (periodically monitored)
A5: Summary of monitoring undertaken, standards used and compliance | K5: Notes:
A6: Monitoring and reporting undertaken by UKAS/MCERTS laboratory with full technical competency. Standards below. HF(CEM/TS17340:2020), Metals (EN 14385:2004), Hg (EN 13211:2001), Dioxins/PCBs (EN 1948-), PAHS (ISO 11338) | K6: Template may require adjustment for any bespoke monitoring requirements of permit - please also check that all default ELV values, reference periods and the stated oxygen reference value match those for your plant, and edit if necessary!
A9: Results of emissions to air that are periodically monitored - oxygen reference 11%
A10: Substance | C10: Ref. Period | D10: Emission Limit Value* | F10: Average | K10: User to add additional tables as necessary, depending on whether quarterly or bi-annual reporting is required for the compliance year
F11: A1 | G11: A2 | H11: A3 | I11: A4 | J11: A5
A12: Hydrogen fluoride | C12: 1 hr | D12: 2 mg/m3 | F12: 0.0276
A13: Cd and Th and their compounds | C13: 0.5-8hrs | D13: 0.05 mg/m3 | F13: 0.00067
A14: Hg and its compounds | C14: 0.5-8hrs | D14: 0.05 mg/m3 | F14: 0.000185 | K14: * Denotes limits that were in force until 2 December 2023; from 3 December 2023 the following new limits applied (those not listed remained unchanged):
A15: Sb, As, Pb, Cr, Co, Cu, Mn, Ni, V and their compounds | C15: 0.5-8hrs | D15: 0.5 mg/m3 | F15: 0.0467
A16: Dioxins & Furans (I-TEQ) | C16: 6-8hrs | D16: 0.1 ng/m3 | F16: 0.001 | K16: Substance | L16: Reference Period | M16: Emission Limit Value
A17: PCBs (WHO-TEQ Humans / Mammals) | C17: 6-8hrs | D17: None set ng/m3 | F17: 3e-05
A18: PCBs (WHO-TEQ Fish) | C18: 6-8hrs | D18: None set ng/m3 | F18: 0.001 | K18: Hydrogen fluoride | L18: Average of three consecutive measurements of at least 30 minutes each | M18: 1 mg/m3
A19: PCBs (WHO-TEQ Birds) | C19: 6-8hrs | D19: None set ng/m3 | F19: 0.001 | K19: Cd and Th and their compounds | L19: Average of three consecutive measurements of at least 30 minutes each | M19: 0.02 mg/m3
A20: Dioxins & Furans (WHO-TEQ Humans / Mammals) | C20: 6-8hrs | D20: None set ng/m3 | F20: 0.001 | K20: Hg and its compounds | L20: Average of three consecutive measurements of at least 30 minutes each | M20: 0.02 mg/m3
A21: Dioxins & Furans (WHO-TEQ Fish) | C21: 6-8hrs | D21: None set ng/m3 | F21: 4e-07 | K21: Sb, As, Pb, Cr, Co, Cu, Mn, Ni, V and their compounds | L21: Average of three consecutive measurements of at least 30 minutes each | M21: 0.3 mg/m3
A22: Dioxins & Furans (WHO-TEQ Birds) | C22: 6-8hrs | D22: None set ng/m3 | F22: 0.002 | K22: Dioxins & Furans (I-TEQ) | L22: 6-8hrs | M22: 0.06 ng/m3
A23: Anthanthrene | C23: 6-8hrs | D23: None set µg/m3 | F23: <0.001
A24: Benzo(a)anthracene | C24: 6-8hrs | D24: None set µg/m3 | F24: <0.001
A25: Benzo(a)pyrene | C25: 6-8hrs | D25: None set µg/m3 | F25: <0.001
A26: Benzo(b)fluoranthene | C26: 6-8hrs | D26: None set µg/m3 | F26: <0.001
A27: Benzo(b)naptho(2,1-d) thiophene | C27: 6-8hrs | D27: None set µg/m3 | F27: <0.001
A28: Benzo(c)phenanthrene | C28: 6-8hrs | D28: None set µg/m3 | F28: <0.001
A29: Benzo(ghi)perylene | C29: 6-8hrs | D29: None set µg/m3 | F29: 0.002
A30: Benzo(k)fluoranthene | C30: 6-8hrs | D30: None set µg/m3 | F30: <0.001
A31: Cholanthrene | C31: 6-8hrs | D31: None set µg/m3 | F31: <0.001
A32: Chrysene | C32: 6-8hrs | D32: None set µg/m3 | F32: <0.001
A33: Cyclopenta(cd)pyrene | C33: 6-8hrs | D33: None set µg/m3 | F33: <0.001
A34: Dibenzo(ai)pyrene | C34: 6-8hrs | D34: None set µg/m3 | F34: <0.001
A35: Dibenzo(ah)anthracene | C35: 6-8hrs | D35: None set µg/m3 | F35: <0.001
A36: Fluoranthene | C36: 6-8hrs | D36: None set µg/m3 | F36: 0.01
A37: Indeno(123-cd) pyrene | C37: 6-8hrs | D37: None set µg/m3 | F37: <0.001
A38: Naphthalene | C38: 6-8hrs | D38: None set µg/m3 | F38: 5.1
A39: Comments :
A40: Units for results are equivalent to the ELV given.

Sheet Air (CEMS)
A1: =+'Cover Page'!$B$29 -> Annual Performance Report 2023 | I1: =+'Cover Page'!$B$33 -> Slough Heat and Power Station
A3: Emissions to Air (continously monitored)
N4: Notes:
A5: Summary of monitoring undertaken, standards used and compliance | N5: Template may require adjustment for any bespoke monitoring requirements of permit
A6: Monitoring is undertaken by MCERs Continuous Emission Monitors (CEMS) to the BS EN 19411 standard. | N6: Please check that all default ELV values match those for your plant and edit if necessary!
N7: Report to 1 decimal place
A11: Results of emissions to air that are continuously monitored (maximum and average values for each line) - oxygen reference 11%
A12: Substance | B12: Reference Period | C12: Emission Limit Value** | D12: A1 | F12: A2 | H12: A3 | J12: A4 | L12: A5
D13: Max. | E13: Avg. | F13: Max. | G13: Avg. | H13: Max. | I13: Avg. | J13: Max. | K13: Avg. | L13: Max. | M13: Avg. | N13: ** Denotes limits that were in force until 2 December 2023; from 3 December 2023 the following new limits applied (those not listed remained unchanged):
A14: Oxides of nitrogen | B14: Daily mean | C14: 200 mg/m3 | D14: 197 | E14: 161.2408732
B15: ½ hourly mean | C15: 400 mg/m3 | D15: 225.75 | E15: 161.2992655 | N15: Substance | O15: Reference Period | P15: Emission Limit Value
A16: Particulates | B16: Daily mean | C16: 10 mg/m3 | D16: 5.55 | E16: 2.653218158
B17: ½ hourly mean | C17: 30 mg/m3 | D17: 11.86 | E17: 2.657248446 | N17: Oxides of nitrogen | O17: Daily mean | P17: 180 mg/m3
A18: Total Organic Carbon | B18: Daily mean | C18: 10 mg/m3 | D18: 1.43 | E18: 0.5562016167 | N18: Particulates | O18: Daily mean | P18: 5 mg/m3
B19: ½ hourly mean | C19: 20 mg/m3 | D19: 5.22 | E19: 0.5462763437 | N19: Hydrogen chloride | O19: Daily mean | P19: 8 mg/m3
A20: Hydrogen chloride | B20: Daily mean | C20: 10 mg/m3 | D20: 5.29 | E20: 1.599838016 | N20: Sulphur dioxide | O20: Daily mean | P20: 40 mg/m3
B21: ½ hourly mean | C21: 60 mg/m3 | D21: 16.2 | E21: 1.603539591 | N21: Ammonia | O21: Daily mean | P21: 15 mg/m3
A22: Sulphur dioxide | B22: Daily mean | C22: 50 mg/m3 | D22: 48 | E22: 40.3380049
B23: ½ hourly mean | C23: 200 mg/m3 | D23: 109.88 | E23: 40.39396862
A24: Carbon monoxide | B24: Daily mean | C24: 50 mg/m3 | D24: 48 | E24: 26.78414693
B25: ½ hourly mean * | C25: 100 mg/m3 * | D25: N/A | E25: N/A
B26: 95%ile 10-min avg * | C26: 150 mg/m3 * | D26: 118.0555 | E26: 88.45616667
A27: Ammonia | B27: Daily mean | C27: No limit set until 03/12/23 | D27: 2.48 | E27: 0.8
A28: ** = delete as appropriate, depending on whether your plant has half-horly or 10-min CO ELVs
A29: Comments :
A30: SHP monitors CO using the 95%ile of 10min averaged. Ammonia CEMs available from Dec '23 only (partial year).

Sheet HCl
A1: =+'Cover Page'!$B$29 -> Annual Performance Report 2023 | E1: =+'Cover Page'!$B$33 -> Slough Heat and Power Station
A3: Monitoring of Hydrogen Chloride emissions | D3: Whole Installation | G3: See Notes in Cell Q3 | J3: =+A3 -> Monitoring of Hydrogen Chloride emissions | N3: Per Combustion Line | Q3: Notes:
Q4: User to add logic to complete Whole installation, Table A5:G18. From the data in Per Combustion Line, Table J6:O79, subject to No. of lines installed
A5: mg/Nm3 | B5: 1/2 Hourly Reference Periods | E5: Daily Reference Periods
A6: =+'Cover Page'!C39 -> 2023 | B6: 1/2 hourly HCl ELV | C6: Monthly 1/2 hourly mean | D6: Highest 1/2 hourly maximum | E6: Daily HCl ELV* | F6: Monthly daily mean | G6: Highest daily maximum | J6: =+A6 -> 2023 | K6: mg/Nm3 | L6: Monthly 1/2 hourly mean | M6: Monthly 1/2 hourly maximum | N6: Monthly daily mean | O6: Monthly daily maximum
A7: Jan | B7: 60 | C7: 2.334358766 | D7: 10.69 | E7: 10 | F7: 2.321153846 | G7: 3.69 | J7: A1 | K7: Jan | L7: 2.334358766 | M7: 10.69 | N7: 2.321153846 | O7: 3.69
A8: Feb | B8: 60 | C8: 3.392752431 | D8: 11.18 | E8: 10 | F8: 3.393928571 | G8: 4.09 | K8: Feb | L8: 3.392752431 | M8: 11.18 | N8: 3.393928571 | O8: 4.09
A9: Mar | B9: 60 | C9: 3.048191153 | D9: 16.2 | E9: 10 | F9: 3.03 | G9: 5.29 | K9: Mar | L9: 3.048191153 | M9: 16.2 | N9: 3.03 | O9: 5.29 | Q9: Whole Installation table A5:G18:
A10: Apr | B10: 60 | C10: 2.635952891 | D10: 7.65 | E10: 10 | F10: 2.638 | G10: 3.37 | K10: Apr | L10: 2.635952891 | M10: 7.65 | N10: 2.638 | O10: 3.37 | Q10: Mean: for 1/2 hourly and daily periods calculate mean of values across all operational combustion lines for the month
A11: May | B11: 60 | C11: 0.903492823 | D11: 3.37 | E11: 10 | F11: 0.91 | G11: 1.51 | K11: May | L11: 0.903492823 | M11: 3.37 | N11: 0.91 | O11: 1.51
A12: Jun | B12: 60 | C12: 1.058335674 | D12: 3.8 | E12: 10 | F12: 1.057333333 | G12: 1.86 | K12: Jun | L12: 1.058335674 | M12: 3.8 | N12: 1.057333333 | O12: 1.86
A13: Jul | B13: 60 | C13: 0.886437414 | D13: 2.61 | E13: 10 | F13: 0.8906451613 | G13: 1.37 | K13: Jul | L13: 0.886437414 | M13: 2.61 | N13: 0.8906451613 | O13: 1.37 | Q13: Maximum: for 1/2 hourly and daily periods use the highest value across all operational combustion lines for the month
A14: Aug | B14: 60 | C14: 0.9845794393 | D14: 3.73 | E14: 10 | F14: 0.9834482759 | G14: 1.26 | K14: Aug | L14: 0.9845794393 | M14: 3.73 | N14: 0.9834482759 | O14: 1.26
A15: Sep | B15: 60 | C15: 1.05925983 | D15: 2.69 | E15: 10 | F15: 1.054074074 | G15: 1.62 | K15: Sep | L15: 1.05925983 | M15: 2.69 | N15: 1.054074074 | O15: 1.62
A16: Oct | B16: 60 | C16: 1.006075778 | D16: 4.23 | E16: 10 | F16: 0.9966666667 | G16: 1.39 | K16: Oct | L16: 1.006075778 | M16: 4.23 | N16: 0.9966666667 | O16: 1.39
A17: Nov | B17: 60 | C17: 1.086466227 | D17: 5.28 | E17: 10 | F17: 1.095769231 | G17: 1.78 | K17: Nov | L17: 1.086466227 | M17: 5.28 | N17: 1.095769231 | O17: 1.78
A18: Dec | B18: 60 | C18: 0.8465726681 | D18: 2.43 | E18: 10 | F18: 0.827037037 | G18: 1.15 | K18: Dec | L18: 0.8465726681 | M18: 2.43 | N18: 0.827037037 | O18: 1.15
E19: * ELV reduced to 8 mg/Nm3 on 3 December 2023 | K19: Annual | L19: =AVERAGE(L7:L18) -> 1.603539591 | M19: =MAX(M7:M18) -> 16.2 | N19: =AVERAGE(N7:N18) -> 1.599838016 | O19: =MAX(O7:O18) -> 5.29
J21: =+A6 -> 2023 | K21: mg/Nm3 | L21: Monthly 1/2 hourly mean | M21: Monthly 1/2 hourly maximum | N21: Monthly daily mean | O21: Monthly daily maximum
J22: A2 | K22: Jan
K23: Feb
K24: Mar
K25: Apr
K26: May
K27: Jun
K28: Jul
K29: Aug
K30: Sep
K31: Oct
K32: Nov
K33: Dec
K34: Annual | L34: =AVERAGE(L22:L33) ->  | M34: =MAX(M22:M33) -> 0 | N34: =AVERAGE(N22:N33) ->  | O34: =MAX(O22:O33) -> 0
J36: =+A6 -> 2023 | K36: mg/Nm3 | L36: Monthly 1/2 hourly mean | M36: Monthly 1/2 hourly maximum | N36: Monthly daily mean | O36: Monthly daily maximum
J37: A3 | K37: Jan
K38: Feb
K39: Mar
K40: Apr
K41: May
K42: Jun
K43: Jul
K44: Aug
K45: Sep
K46: Oct
K47: Nov
A48: Comments : | K48: Dec
K49: Annual | L49: =AVERAGE(L37:L48) ->  | M49: =MAX(M37:M48) -> 0 | N49: =AVERAGE(N37:N48) ->  | O49: =MAX(O37:O48) -> 0
J51: =+A6 -> 2023 | K51: mg/Nm3 | L51: Monthly 1/2 hourly mean | M51: Monthly 1/2 hourly maximum | N51: Monthly daily mean | O51: Monthly daily maximum
J52: A4 | K52: Jan
K53: Feb
K54: Mar
K55: Apr
K56: May
K57: Jun
K58: Jul
K59: Aug
K60: Sep
K61: Oct
K62: Nov
K63: Dec
K64: Annual | L64: =AVERAGE(L52:L63) ->  | M64: =MAX(M52:M63) -> 0 | N64: =AVERAGE(N52:N63) ->  | O64: =MAX(O52:O63) -> 0
J66: =+A6 -> 2023 | K66: mg/Nm3 | L66: Monthly 1/2 hourly mean | M66: Monthly 1/2 hourly maximum | N66: Monthly daily mean | O66: Monthly daily maximum
J67: A5 | K67: Jan
K68: Feb
K69: Mar
K70: Apr
K71: May
K72: Jun
K73: Jul
K74: Aug
K75: Sep
K76: Oct
K77: Nov
K78: Dec
K79: Annual | L79: =AVERAGE(L67:L78) ->  | M79: =MAX(M67:M78) -> 0 | N79: =AVERAGE(N67:N78) ->  | O79: =MAX(O67:O78) -> 0

Sheet SO2
A1: =+'Cover Page'!$B$29 -> Annual Performance Report 2023 | E1: =+'Cover Page'!$B$33 -> Slough Heat and Power Station
A3: Monitoring of Sulphur dioxide emissions | D3: Whole Installation | G3: See Notes in Cell Q3 | J3: =+A3 -> Monitoring of Sulphur dioxide emissions | N3: Per Combustion Line | Q3: Notes:
Q4: User to add logic to complete Whole installation, Table A5:G18. From the data in Per Combustion Line, Table J6:O79, subject to No. of lines installed
A5: mg/Nm3 | B5: 1/2 Hourly Reference Periods | E5: Daily Reference Periods
A6: =+'Cover Page'!C39 -> 2023 | B6: 1/2 hourly SO2 ELV | C6: Monthly 1/2 hourly mean | D6: Highest 1/2 hourly maximum | E6: Daily SO2 ELV* | F6: Monthly daily mean | G6: Highest daily maximum | J6: =+A6 -> 2023 | K6: mg/Nm3 | L6: Monthly 1/2 hourly mean | M6: Monthly 1/2 hourly maximum | N6: Monthly daily mean | O6: Monthly daily maximum
A7: Jan | B7: 200 | C7: 38.85334416 | D7: 85.7 | E7: 50 | F7: 38.73076923 | G7: 44 | J7: A1 | K7: Jan | L7: 38.85334416 | M7: 85.7 | N7: 38.73076923 | O7: 44
A8: Feb | B8: 200 | C8: 39.87489155 | D8: 109.88 | E8: 50 | F8: 39.85714286 | G8: 45 | K8: Feb | L8: 39.87489155 | M8: 109.88 | N8: 39.85714286 | O8: 45
A9: Mar | B9: 200 | C9: 41.15230648 | D9: 104.01 | E9: 50 | F9: 41.37037037 | G9: 46 | K9: Mar | L9: 41.15230648 | M9: 104.01 | N9: 41.37037037 | O9: 46 | Q9: Whole Installation table A5:G18:
A10: Apr | B10: 200 | C10: 43.07586724 | D10: 75.35 | E10: 50 | F10: 43 | G10: 47 | K10: Apr | L10: 43.07586724 | M10: 75.35 | N10: 43 | O10: 47 | Q10: Mean: for 1/2 hourly and daily periods calculate mean of values across all operational combustion lines for the month
A11: May | B11: 200 | C11: 37.42666268 | D11: 85.33 | E11: 50 | F11: 37.33333333 | G11: 47 | K11: May | L11: 37.42666268 | M11: 85.33 | N11: 37.33333333 | O11: 47
A12: Jun | B12: 200 | C12: 42.14692416 | D12: 104.88 | E12: 50 | F12: 42.10344828 | G12: 47 | K12: Jun | L12: 42.14692416 | M12: 104.88 | N12: 42.10344828 | O12: 47
A13: Jul | B13: 200 | C13: 44.02581843 | D13: 98.46 | E13: 50 | F13: 44.03225806 | G13: 46 | K13: Jul | L13: 44.02581843 | M13: 98.46 | N13: 44.03225806 | O13: 46 | Q13: Maximum: for 1/2 hourly and daily periods use the highest value across all operational combustion lines for the month
A14: Aug | B14: 200 | C14: 44.31431344 | D14: 85.91 | E14: 50 | F14: 44.37931034 | G14: 48 | K14: Aug | L14: 44.31431344 | M14: 85.91 | N14: 44.37931034 | O14: 48
A15: Sep | B15: 200 | C15: 38.4861835 | D15: 81.53 | E15: 50 | F15: 38.2962963 | G15: 46 | K15: Sep | L15: 38.4861835 | M15: 81.53 | N15: 38.2962963 | O15: 46
A16: Oct | B16: 200 | C16: 41.76757781 | D16: 109.67 | E16: 50 | F16: 41.4 | G16: 47 | K16: Oct | L16: 41.76757781 | M16: 109.67 | N16: 41.4 | O16: 47
A17: Nov | B17: 200 | C17: 43.10712521 | D17: 104.24 | E17: 50 | F17: 43.07692308 | G17: 48 | K17: Nov | L17: 43.10712521 | M17: 104.24 | N17: 43.07692308 | O17: 48
A18: Dec | B18: 200 | C18: 30.49660882 | D18: 82.4 | E18: 50 | F18: 30.4762069 | G18: 37.18 | K18: Dec | L18: 30.49660882 | M18: 82.4 | N18: 30.4762069 | O18: 37.18
E19: * ELV reduced to 40 mg/Nm3 on 3 December 2023 | K19: Annual | L19: =AVERAGE(L7:L18) -> 40.39396862 | M19: =MAX(M7:M18) -> 109.88 | N19: =AVERAGE(N7:N18) -> 40.3380049 | O19: =MAX(O7:O18) -> 48
J21: =+A6 -> 2023 | K21: mg/Nm3 | L21: Monthly 1/2 hourly mean | M21: Monthly 1/2 hourly maximum | N21: Monthly daily mean | O21: Monthly daily maximum
J22: A2 | K22: Jan
K23: Feb
K24: Mar
K25: Apr
K26: May
K27: Jun
K28: Jul
K29: Aug
K30: Sep
K31: Oct
K32: Nov
K33: Dec
K34: Annual | L34: =AVERAGE(L22:L33) ->  | M34: =MAX(M22:M33) -> 0 | N34: =AVERAGE(N22:N33) ->  | O34: =MAX(O22:O33) -> 0
J36: =+A6 -> 2023 | K36: mg/Nm3 | L36: Monthly 1/2 hourly mean | M36: Monthly 1/2 hourly maximum | N36: Monthly daily mean | O36: Monthly daily maximum
J37: A3 | K37: Jan
K38: Feb
K39: Mar
K40: Apr
K41: May
K42: Jun
K43: Jul
K44: Aug
K45: Sep
K46: Oct
K47: Nov
A48: Comments : | K48: Dec
K49: Annual | L49: =AVERAGE(L37:L48) ->  | M49: =MAX(M37:M48) -> 0 | N49: =AVERAGE(N37:N48) ->  | O49: =MAX(O37:O48) -> 0
J51: =+A6 -> 2023 | K51: mg/Nm3 | L51: Monthly 1/2 hourly mean | M51: Monthly 1/2 hourly maximum | N51: Monthly daily mean | O51: Monthly daily maximum
J52: A4 | K52: Jan
K53: Feb
K54: Mar
K55: Apr
K56: May
K57: Jun
K58: Jul
K59: Aug
K60: Sep
K61: Oct
K62: Nov
K63: Dec
K64: Annual | L64: =AVERAGE(L52:L63) ->  | M64: =MAX(M52:M63) -> 0 | N64: =AVERAGE(N52:N63) ->  | O64: =MAX(O52:O63) -> 0
J66: =+A6 -> 2023 | K66: mg/Nm3 | L66: Monthly 1/2 hourly mean | M66: Monthly 1/2 hourly maximum | N66: Monthly daily mean | O66: Monthly daily maximum
J67: A5 | K67: Jan
K68: Feb
K69: Mar
K70: Apr
K71: May
K72: Jun
K73: Jul
K74: Aug
K75: Sep
K76: Oct
K77: Nov
K78: Dec
K79: Annual | L79: =AVERAGE(L67:L78) ->  | M79: =MAX(M67:M78) -> 0 | N79: =AVERAGE(N67:N78) ->  | O79: =MAX(O67:O78) -> 0

Sheet NOx
A1: =+'Cover Page'!$B$29 -> Annual Performance Report 2023 | E1: =+'Cover Page'!$B$33 -> Slough Heat and Power Station
A3: Monitoring of Oxides of Nitrogen emissions | D3: Whole Installation | G3: See Notes in Cell Q3 | J3: =+A3 -> Monitoring of Oxides of Nitrogen emissions | N3: Per Combustion Line | Q3: Notes:
Q4: User to add logic to complete Whole installation, Table A5:G18. From the data in Per Combustion Line, Table J6:O79, subject to No. of lines installed
A5: mg/Nm3 | B5: 1/2 Hourly Reference Periods | E5: Daily Reference Periods
A6: =+'Cover Page'!C39 -> 2023 | B6: 1/2 hourly NOx ELV | C6: Monthly 1/2 hourly mean | D6: Highest 1/2 hourly maximum | E6: Daily NOx ELV* | F6: Monthly daily mean | G6: Highest daily maximum | J6: =+A6 -> 2023 | K6: mg/Nm3 | L6: Monthly 1/2 hourly mean | M6: Monthly 1/2 hourly maximum | N6: Monthly daily mean | O6: Monthly daily maximum
A7: Jan | B7: 400 | C7: 191.1527516 | D7: 217.39 | E7: 200 | F7: 191.1538462 | G7: 197 | J7: A1 | K7: Jan | L7: 191.1527516 | M7: 217.39 | N7: 191.1538462 | O7: 197
A8: Feb | B8: 400 | C8: 188.6024533 | D8: 214.8 | E8: 200 | F8: 187.75 | G8: 196 | K8: Feb | L8: 188.6024533 | M8: 214.8 | N8: 187.75 | O8: 196
A9: Mar | B9: 400 | C9: 186.6880095 | D9: 215.62 | E9: 200 | F9: 186.6296296 | G9: 196 | K9: Mar | L9: 186.6880095 | M9: 215.62 | N9: 186.6296296 | O9: 196 | Q9: Whole Installation table A5:G18:
A10: Apr | B10: 400 | C10: 185.494197 | D10: 214.83 | E10: 200 | F10: 185.6 | G10: 192 | K10: Apr | L10: 185.494197 | M10: 214.83 | N10: 185.6 | O10: 192 | Q10: Mean: for 1/2 hourly and daily periods calculate mean of values across all operational combustion lines for the month
A11: May | B11: 400 | C11: 150.157189 | D11: 175.31 | E11: 200 | F11: 150.2222222 | G11: 160 | K11: May | L11: 150.157189 | M11: 175.31 | N11: 150.2222222 | O11: 160
A12: Jun | B12: 400 | C12: 137.2126194 | D12: 194 | E12: 200 | F12: 138 | G12: 169 | K12: Jun | L12: 137.2126194 | M12: 194 | N12: 138 | O12: 169
A13: Jul | B13: 400 | C13: 133.2122558 | D13: 194.56 | E13: 200 | F13: 132.9032258 | G13: 174 | K13: Jul | L13: 133.2122558 | M13: 194.56 | N13: 132.9032258 | O13: 174 | Q13: Maximum: for 1/2 hourly and daily periods use the highest value across all operational combustion lines for the month
A14: Aug | B14: 400 | C14: 118.2480014 | D14: 181.69 | E14: 200 | F14: 118.3103448 | G14: 126 | K14: Aug | L14: 118.2480014 | M14: 181.69 | N14: 118.3103448 | O14: 126
A15: Sep | B15: 400 | C15: 115.7498458 | D15: 199.68 | E15: 200 | F15: 115.7037037 | G15: 149 | K15: Sep | L15: 115.7498458 | M15: 199.68 | N15: 115.7037037 | O15: 149
A16: Oct | B16: 400 | C16: 174.6280379 | D16: 220.53 | E16: 200 | F16: 174.4 | G16: 194 | K16: Oct | L16: 174.6280379 | M16: 220.53 | N16: 174.4 | O16: 194
A17: Nov | B17: 400 | C17: 183.8845964 | D17: 214.95 | E17: 200 | F17: 183.7692308 | G17: 193 | K17: Nov | L17: 183.8845964 | M17: 214.95 | N17: 183.7692308 | O17: 193
A18: Dec | B18: 400 | C18: 170.5612292 | D18: 225.75 | E18: 200 | F18: 170.4482759 | G18: 179 | K18: Dec | L18: 170.5612292 | M18: 225.75 | N18: 170.4482759 | O18: 179
E19: * ELV reduced to 180 mg/Nm3 on 3 December 2023 | K19: Annual | L19: =AVERAGE(L7:L18) -> 161.2992655 | M19: =MAX(M7:M18) -> 225.75 | N19: =AVERAGE(N7:N18) -> 161.2408732 | O19: =MAX(O7:O18) -> 197
J21: =+A6 -> 2023 | K21: mg/Nm3 | L21: Monthly 1/2 hourly mean | M21: Monthly 1/2 hourly maximum | N21: Monthly daily mean | O21: Monthly daily maximum
J22: A2 | K22: Jan
K23: Feb
K24: Mar
K25: Apr
K26: May
K27: Jun
K28: Jul
K29: Aug
K30: Sep
K31: Oct
K32: Nov
K33: Dec
K34: Annual | L34: =AVERAGE(L22:L33) ->  | M34: =MAX(M22:M33) -> 0 | N34: =AVERAGE(N22:N33) ->  | O34: =MAX(O22:O33) -> 0
J36: =+A6 -> 2023 | K36: mg/Nm3 | L36: Monthly 1/2 hourly mean | M36: Monthly 1/2 hourly maximum | N36: Monthly daily mean | O36: Monthly daily maximum
J37: A3 | K37: Jan
K38: Feb
K39: Mar
K40: Apr
K41: May
K42: Jun
K43: Jul
K44: Aug
K45: Sep
K46: Oct
K47: Nov
A48: Comments : | K48: Dec
K49: Annual | L49: =AVERAGE(L37:L48) ->  | M49: =MAX(M37:M48) -> 0 | N49: =AVERAGE(N37:N48) ->  | O49: =MAX(O37:O48) -> 0
J51: =+A6 -> 2023 | K51: mg/Nm3 | L51: Monthly 1/2 hourly mean | M51: Monthly 1/2 hourly maximum | N51: Monthly daily mean | O51: Monthly daily maximum
J52: A4 | K52: Jan
K53: Feb
K54: Mar
K55: Apr
K56: May
K57: Jun
K58: Jul
K59: Aug
K60: Sep
K61: Oct
K62: Nov
K63: Dec
K64: Annual | L64: =AVERAGE(L52:L63) ->  | M64: =MAX(M52:M63) -> 0 | N64: =AVERAGE(N52:N63) ->  | O64: =MAX(O52:O63) -> 0
J66: =+A6 -> 2023 | K66: mg/Nm3 | L66: Monthly 1/2 hourly mean | M66: Monthly 1/2 hourly maximum | N66: Monthly daily mean | O66: Monthly daily maximum
J67: A5 | K67: Jan
K68: Feb
K69: Mar
K70: Apr
K71: May
K72: Jun
K73: Jul
K74: Aug
K75: Sep
K76: Oct
K77: Nov
K78: Dec
K79: Annual | L79: =AVERAGE(L67:L78) ->  | M79: =MAX(M67:M78) -> 0 | N79: =AVERAGE(N67:N78) ->  | O79: =MAX(O67:O78) -> 0

Sheet TOC
A1: =+'Cover Page'!$B$29 -> Annual Performance Report 2023 | E1: =+'Cover Page'!$B$33 -> Slough Heat and Power Station
A3: Monitoring of Total organic carbon emissions | D3: Whole Installation | G3: See Notes in Cell Q3 | J3: =+A3 -> Monitoring of Total organic carbon emissions | N3: Per Combustion Line | Q3: Notes:
Q4: User to add logic to complete Whole installation, Table A5:G18. From the data in Per Combustion Line, Table J6:O79, subject to No. of lines installed
A5: mg/Nm3 | B5: 1/2 Hourly Reference Periods | E5: Daily Reference Periods
A6: =+'Cover Page'!C39 -> 2023 | B6: 1/2 hourly TOC ELV | C6: Monthly 1/2 hourly mean | D6: Highest 1/2 hourly maximum | E6: Daily TOC ELV | F6: Monthly daily mean | G6: Highest daily maximum | J6: =+A6 -> 2023 | K6: mg/Nm3 | L6: Monthly 1/2 hourly mean | M6: Monthly 1/2 hourly maximum | N6: Monthly daily mean | O6: Monthly daily maximum
A7: Jan | B7: 20 | C7: 0.7170373377 | D7: 5.22 | E7: 10 | F7: 0.7176923077 | G7: 1.43 | J7: A1 | K7: Jan | L7: 0.7170373377 | M7: 5.22 | N7: 0.7176923077 | O7: 1.43
A8: Feb | B8: 20 | C8: 0.549947644 | D8: 2.69 | E8: 10 | F8: 0.5560714286 | G8: 0.87 | K8: Feb | L8: 0.549947644 | M8: 2.69 | N8: 0.5560714286 | O8: 0.87
A9: Mar | B9: 20 | C9: 0.7885781991 | D9: 3.79 | E9: 10 | F9: 0.7892592593 | G9: 1.06 | K9: Mar | L9: 0.7885781991 | M9: 3.79 | N9: 0.7892592593 | O9: 1.06 | Q9: Whole Installation table A5:G18:
A10: Apr | B10: 20 | C10: 0.4452034261 | D10: 3.67 | E10: 10 | F10: 0.442 | G10: 0.75 | K10: Apr | L10: 0.4452034261 | M10: 3.67 | N10: 0.442 | O10: 0.75 | Q10: Mean: for 1/2 hourly and daily periods calculate mean of values across all operational combustion lines for the month
A11: May | B11: 20 | C11: 0.5610645933 | D11: 5.02 | E11: 10 | F11: 0.5616666667 | G11: 0.79 | K11: May | L11: 0.5610645933 | M11: 5.02 | N11: 0.5616666667 | O11: 0.79
A12: Jun | B12: 20 | C12: 0.5369592697 | D12: 2.3 | E12: 10 | F12: 0.5373333333 | G12: 0.79 | K12: Jun | L12: 0.5369592697 | M12: 2.3 | N12: 0.5373333333 | O12: 0.79
A13: Jul | B13: 20 | C13: 0.5668775791 | D13: 2.27 | E13: 10 | F13: 0.57 | G13: 0.77 | K13: Jul | L13: 0.5668775791 | M13: 2.27 | N13: 0.57 | O13: 0.77 | Q13: Maximum: for 1/2 hourly and daily periods use the highest value across all operational combustion lines for the month
A14: Aug | B14: 20 | C14: 0.5624802301 | D14: 1.31 | E14: 10 | F14: 0.5613793103 | G14: 0.62 | K14: Aug | L14: 0.5624802301 | M14: 1.31 | N14: 0.5613793103 | O14: 0.62
A15: Sep | B15: 20 | C15: 0.4504247104 | D15: 2.75 | E15: 10 | F15: 0.4963703704 | G15: 0.67 | K15: Sep | L15: 0.4504247104 | M15: 2.75 | N15: 0.4963703704 | O15: 0.67
A16: Oct | B16: 20 | C16: 0.4409133965 | D16: 3.04 | E16: 10 | F16: 0.4423333333 | G16: 0.71 | K16: Oct | L16: 0.4409133965 | M16: 3.04 | N16: 0.4423333333 | O16: 0.71
A17: Nov | B17: 20 | C17: 0.2600741351 | D17: 2.44 | E17: 10 | F17: 0.3184615385 | G17: 0.68 | K17: Nov | L17: 0.2600741351 | M17: 2.44 | N17: 0.3184615385 | O17: 0.68
A18: Dec | B18: 20 | C18: 0.6757556038 | D18: 2.47 | E18: 10 | F18: 0.6818518519 | G18: 1.02 | K18: Dec | L18: 0.6757556038 | M18: 2.47 | N18: 0.6818518519 | O18: 1.02
K19: Annual | L19: =AVERAGE(L7:L18) -> 0.5462763437 | M19: =MAX(M7:M18) -> 5.22 | N19: =AVERAGE(N7:N18) -> 0.5562016167 | O19: =MAX(O7:O18) -> 1.43
J21: =+A6 -> 2023 | K21: mg/Nm3 | L21: Monthly 1/2 hourly mean | M21: Monthly 1/2 hourly maximum | N21: Monthly daily mean | O21: Monthly daily maximum
J22: A2 | K22: Jan
K23: Feb
K24: Mar
K25: Apr
K26: May
K27: Jun
K28: Jul
K29: Aug
K30: Sep
K31: Oct
K32: Nov
K33: Dec
K34: Annual | L34: =AVERAGE(L22:L33) ->  | M34: =MAX(M22:M33) -> 0 | N34: =AVERAGE(N22:N33) ->  | O34: =MAX(O22:O33) -> 0
J36: =+A6 -> 2023 | K36: mg/Nm3 | L36: Monthly 1/2 hourly mean | M36: Monthly 1/2 hourly maximum | N36: Monthly daily mean | O36: Monthly daily maximum
J37: A3 | K37: Jan
K38: Feb
K39: Mar
K40: Apr
K41: May
K42: Jun
K43: Jul
K44: Aug
K45: Sep
K46: Oct
K47: Nov
A48: Comments : | K48: Dec
K49: Annual | L49: =AVERAGE(L37:L48) ->  | M49: =MAX(M37:M48) -> 0 | N49: =AVERAGE(N37:N48) ->  | O49: =MAX(O37:O48) -> 0
J51: =+A6 -> 2023 | K51: mg/Nm3 | L51: Monthly 1/2 hourly mean | M51: Monthly 1/2 hourly maximum | N51: Monthly daily mean | O51: Monthly daily maximum
J52: A4 | K52: Jan
K53: Feb
K54: Mar
K55: Apr
K56: May
K57: Jun
K58: Jul
K59: Aug
K60: Sep
K61: Oct
K62: Nov
K63: Dec
K64: Annual | L64: =AVERAGE(L52:L63) ->  | M64: =MAX(M52:M63) -> 0 | N64: =AVERAGE(N52:N63) ->  | O64: =MAX(O52:O63) -> 0
J66: =+A6 -> 2023 | K66: mg/Nm3 | L66: Monthly 1/2 hourly mean | M66: Monthly 1/2 hourly maximum | N66: Monthly daily mean | O66: Monthly daily maximum
J67: A5 | K67: Jan
K68: Feb
K69: Mar
K70: Apr
K71: May
K72: Jun
K73: Jul
K74: Aug
K75: Sep
K76: Oct
K77: Nov
K78: Dec
K79: Annual | L79: =AVERAGE(L67:L78) ->  | M79: =MAX(M67:M78) -> 0 | N79: =AVERAGE(N67:N78) ->  | O79: =MAX(O67:O78) -> 0

Sheet Particulates
A1: =+'Cover Page'!$B$29 -> Annual Performance Report 2023 | E1: =+'Cover Page'!$B$33 -> Slough Heat and Power Station
A3: Monitoring of Particulate matter emissions | D3: Whole Installation | G3: See Notes in Cell Q3 | J3: =+A3 -> Monitoring of Particulate matter emissions | N3: Per Combustion Line | Q3: Notes:
Q4: User to add logic to complete Whole installation, Table A5:G18. From the data in Per Combustion Line, Table J6:O79, subject to No. of lines installed
A5: mg/Nm3 | B5: 1/2 Hourly Reference Periods | E5: Daily Reference Periods
A6: =+'Cover Page'!C39 -> 2023 | B6: 1/2 hourly PM ELV | C6: Monthly 1/2 hourly mean | D6: Highest 1/2 hourly maximum | E6: Daily PM ELV* | F6: Monthly daily mean | G6: Highest daily maximum | J6: =+A6 -> 2023 | K6: mg/Nm3 | L6: Monthly 1/2 hourly mean | M6: Monthly 1/2 hourly maximum | N6: Monthly daily mean | O6: Monthly daily maximum
A7: Jan | B7: 30 | C7: 3.615551948 | D7: 6.95 | E7: 10 | F7: 3.608076923 | G7: 5.09 | J7: A1 | K7: Jan | L7: 3.615551948 | M7: 6.95 | N7: 3.608076923 | O7: 5.09
A8: Feb | B8: 30 | C8: 3.994360509 | D8: 7.81 | E8: 10 | F8: 3.993214286 | G8: 5.55 | K8: Feb | L8: 3.994360509 | M8: 7.81 | N8: 3.993214286 | O8: 5.55
A9: Mar | B9: 30 | C9: 3.40614534 | D9: 11.86 | E9: 10 | F9: 3.394814815 | G9: 4.8 | K9: Mar | L9: 3.40614534 | M9: 11.86 | N9: 3.394814815 | O9: 4.8 | Q9: Whole Installation table A5:G18:
A10: Apr | B10: 30 | C10: 3.924871245 | D10: 5.2 | E10: 10 | F10: 3.939 | G10: 4.4 | K10: Apr | L10: 3.924871245 | M10: 5.2 | N10: 3.939 | O10: 4.4 | Q10: Mean: for 1/2 hourly and daily periods calculate mean of values across all operational combustion lines for the month
A11: May | B11: 30 | C11: 1.836698565 | D11: 2.56 | E11: 10 | F11: 1.843888889 | G11: 2.18 | K11: May | L11: 1.836698565 | M11: 2.56 | N11: 1.843888889 | O11: 2.18
A12: Jun | B12: 30 | C12: 2.109508427 | D12: 4.02 | E12: 10 | F12: 2.108666667 | G12: 2.36 | K12: Jun | L12: 2.109508427 | M12: 4.02 | N12: 2.108666667 | O12: 2.36
A13: Jul | B13: 30 | C13: 1.215041265 | D13: 3.87 | E13: 10 | F13: 1.209032258 | G13: 2.96 | K13: Jul | L13: 1.215041265 | M13: 3.87 | N13: 1.209032258 | O13: 2.96 | Q13: Maximum: for 1/2 hourly and daily periods use the highest value across all operational combustion lines for the month
A14: Aug | B14: 30 | C14: 1.122624012 | D14: 1.78 | E14: 10 | F14: 1.123448276 | G14: 1.33 | K14: Aug | L14: 1.122624012 | M14: 1.78 | N14: 1.123448276 | O14: 1.33
A15: Sep | B15: 30 | C15: 1.323577487 | D15: 2.04 | E15: 10 | F15: 1.323703704 | G15: 1.87 | K15: Sep | L15: 1.323577487 | M15: 2.04 | N15: 1.323703704 | O15: 1.87
A16: Oct | B16: 30 | C16: 2.39905954 | D16: 6.05 | E16: 10 | F16: 2.388333333 | G16: 4.03 | K16: Oct | L16: 2.39905954 | M16: 6.05 | N16: 2.388333333 | O16: 4.03
A17: Nov | B17: 30 | C17: 4.106260297 | D17: 6.81 | E17: 10 | F17: 4.123846154 | G17: 5.49 | K17: Nov | L17: 4.106260297 | M17: 6.81 | N17: 4.123846154 | O17: 5.49
A18: Dec | B18: 30 | C18: 2.833282719 | D18: 7.29 | E18: 10 | F18: 2.782592593 | G18: 4.51 | K18: Dec | L18: 2.833282719 | M18: 7.29 | N18: 2.782592593 | O18: 4.51
E19: * ELV reduced to 5 mg/Nm3 on 3 December 2023 | K19: Annual | L19: =AVERAGE(L7:L18) -> 2.657248446 | M19: =MAX(M7:M18) -> 11.86 | N19: =AVERAGE(N7:N18) -> 2.653218158 | O19: =MAX(O7:O18) -> 5.55
J21: =+A6 -> 2023 | K21: mg/Nm3 | L21: Monthly 1/2 hourly mean | M21: Monthly 1/2 hourly maximum | N21: Monthly daily mean | O21: Monthly daily maximum
J22: A2 | K22: Jan
K23: Feb
K24: Mar
K25: Apr
K26: May
K27: Jun
K28: Jul
K29: Aug
K30: Sep
K31: Oct
K32: Nov
K33: Dec
K34: Annual | L34: =AVERAGE(L22:L33) ->  | M34: =MAX(M22:M33) -> 0 | N34: =AVERAGE(N22:N33) ->  | O34: =MAX(O22:O33) -> 0
J36: =+A6 -> 2023 | K36: mg/Nm3 | L36: Monthly 1/2 hourly mean | M36: Monthly 1/2 hourly maximum | N36: Monthly daily mean | O36: Monthly daily maximum
J37: A3 | K37: Jan
K38: Feb
K39: Mar
K40: Apr
K41: May
K42: Jun
K43: Jul
K44: Aug
K45: Sep
K46: Oct
K47: Nov
A48: Comments : | K48: Dec
K49: Annual | L49: =AVERAGE(L37:L48) ->  | M49: =MAX(M37:M48) -> 0 | N49: =AVERAGE(N37:N48) ->  | O49: =MAX(O37:O48) -> 0
J51: =+A6 -> 2023 | K51: mg/Nm3 | L51: Monthly 1/2 hourly mean | M51: Monthly 1/2 hourly maximum | N51: Monthly daily mean | O51: Monthly daily maximum
J52: A4 | K52: Jan
K53: Feb
K54: Mar
K55: Apr
K56: May
K57: Jun
K58: Jul
K59: Aug
K60: Sep
K61: Oct
K62: Nov
K63: Dec
K64: Annual | L64: =AVERAGE(L52:L63) ->  | M64: =MAX(M52:M63) -> 0 | N64: =AVERAGE(N52:N63) ->  | O64: =MAX(O52:O63) -> 0
J66: =+A6 -> 2023 | K66: mg/Nm3 | L66: Monthly 1/2 hourly mean | M66: Monthly 1/2 hourly maximum | N66: Monthly daily mean | O66: Monthly daily maximum
J67: A5 | K67: Jan
K68: Feb
K69: Mar
K70: Apr
K71: May
K72: Jun
K73: Jul
K74: Aug
K75: Sep
K76: Oct
K77: Nov
K78: Dec
K79: Annual | L79: =AVERAGE(L67:L78) ->  | M79: =MAX(M67:M78) -> 0 | N79: =AVERAGE(N67:N78) ->  | O79: =MAX(O67:O78) -> 0

Sheet CO 0.5 hourly
A1: =+'Cover Page'!$B$29 -> Annual Performance Report 2023 | E1: =+'Cover Page'!$B$33 -> Slough Heat and Power Station
A3: Monitoring of Carbon Monoxide (half hourly) | D3: Whole Installation | G3: See Notes in Cell Q3 | J3: =+A3 -> Monitoring of Carbon Monoxide (half hourly) | N3: Per Combustion Line | Q3: Notes:
A5: Please complete this tab for your plant if you have 1/2 hourly CO ELVs; otherwise, leave it blank and complete the CO 95% 10 min tab
Q7: User to add logic to complete Whole installation, Table A5:G18. From the data in Per Combustion Line, Table J6:O79, subject to No. of lines installed
A8: mg/Nm3 | B8: 1/2 Hourly Reference Periods | E8: Daily Reference Periods
A9: =+'Cover Page'!C39 -> 2023 | B9: 1/2 hourly CO ELV | C9: Monthly 1/2 hourly mean | D9: Highest 1/2 hourly maximum | E9: Daily CO ELV | F9: Monthly daily mean | G9: Highest daily maximum | J9: =+A9 -> 2023 | K9: mg/Nm3 | L9: Monthly 1/2 hourly mean | M9: Monthly 1/2 hourly maximum | N9: Monthly daily mean | O9: Monthly daily maximum
A10: Jan | B10: 100 | C10: N/A | D10: N/A | E10: 50 | F10: N/A | G10: N/A | J10: A1 | K10: Jan | L10: N/A | M10: N/A | N10: N/A | O10: N/A
A11: Feb | B11: =+B10 -> 100 | C11: N/A | D11: N/A | E11: =+E10 -> 50 | F11: N/A | G11: N/A | K11: Feb | L11: N/A | M11: N/A | N11: N/A | O11: N/A
A12: Mar | B12: =+B11 -> 100 | C12: N/A | D12: N/A | E12: =+E11 -> 50 | F12: N/A | G12: N/A | K12: Mar | L12: N/A | M12: N/A | N12: N/A | O12: N/A | Q12: Whole Installation table A5:G18:
A13: Apr | B13: 100 | C13: N/A | D13: N/A | E13: 50 | F13: N/A | G13: N/A | K13: Apr | L13: N/A | M13: N/A | N13: N/A | O13: N/A | Q13: Mean: for 1/2 hourly and daily periods calculate mean of values across all operational combustion lines for the month
A14: May | B14: 100 | C14: N/A | D14: N/A | E14: 50 | F14: N/A | G14: N/A | K14: May | L14: N/A | M14: N/A | N14: N/A | O14: N/A
A15: Jun | B15: 100 | C15: N/A | D15: N/A | E15: 50 | F15: N/A | G15: N/A | K15: Jun | L15: N/A | M15: N/A | N15: N/A | O15: N/A
A16: Jul | B16: 100 | C16: N/A | D16: N/A | E16: 50 | F16: N/A | G16: N/A | K16: Jul | L16: N/A | M16: N/A | N16: N/A | O16: N/A | Q16: Maximum: for 1/2 hourly and daily periods use the highest value across all operational combustion lines for the month
A17: Aug | B17: 100 | C17: N/A | D17: N/A | E17: 50 | F17: N/A | G17: N/A | K17: Aug | L17: N/A | M17: N/A | N17: N/A | O17: N/A
A18: Sep | B18: 100 | C18: N/A | D18: N/A | E18: 50 | F18: N/A | G18: N/A | K18: Sep | L18: N/A | M18: N/A | N18: N/A | O18: N/A
A19: Oct | B19: 100 | C19: N/A | D19: N/A | E19: 50 | F19: N/A | G19: N/A | K19: Oct | L19: N/A | M19: N/A | N19: N/A | O19: N/A
A20: Nov | B20: 100 | C20: N/A | D20: N/A | E20: 50 | F20: N/A | G20: N/A | K20: Nov | L20: N/A | M20: N/A | N20: N/A | O20: N/A
A21: Dec | B21: 100 | C21: N/A | D21: N/A | E21: 50 | F21: N/A | G21: N/A | K21: Dec | L21: N/A | M21: N/A | N21: N/A | O21: N/A
K22: Annual | L22: =AVERAGE(L10:L21) ->  | M22: =MAX(M10:M21) -> 0 | N22: =AVERAGE(N10:N21) ->  | O22: =MAX(O10:O21) -> 0
J24: =+A9 -> 2023 | K24: mg/Nm3 | L24: Monthly 1/2 hourly mean | M24: Monthly 1/2 hourly maximum | N24: Monthly daily mean | O24: Monthly daily maximum
J25: A2 | K25: Jan
K26: Feb
K27: Mar
K28: Apr
K29: May
K30: Jun
K31: Jul
K32: Aug
K33: Sep
K34: Oct
K35: Nov
K36: Dec
K37: Annual | L37: =AVERAGE(L25:L36) ->  | M37: =MAX(M25:M36) -> 0 | N37: =AVERAGE(N25:N36) ->  | O37: =MAX(O25:O36) -> 0
J39: =+A9 -> 2023 | K39: mg/Nm3 | L39: Monthly 1/2 hourly mean | M39: Monthly 1/2 hourly maximum | N39: Monthly daily mean | O39: Monthly daily maximum
J40: A3 | K40: Jan
K41: Feb
K42: Mar
K43: Apr
K44: May
K45: Jun
K46: Jul
K47: Aug
K48: Sep
K49: Oct
K50: Nov
A51: Comments : | K51: Dec
K52: Annual | L52: =AVERAGE(L40:L51) ->  | M52: =MAX(M40:M51) -> 0 | N52: =AVERAGE(N40:N51) ->  | O52: =MAX(O40:O51) -> 0
J54: =+A9 -> 2023 | K54: mg/Nm3 | L54: Monthly 1/2 hourly mean | M54: Monthly 1/2 hourly maximum | N54: Monthly daily mean | O54: Monthly daily maximum
J55: A4 | K55: Jan
K56: Feb
K57: Mar
K58: Apr
K59: May
K60: Jun
K61: Jul
K62: Aug
K63: Sep
K64: Oct
K65: Nov
K66: Dec
K67: Annual | L67: =AVERAGE(L55:L66) ->  | M67: =MAX(M55:M66) -> 0 | N67: =AVERAGE(N55:N66) ->  | O67: =MAX(O55:O66) -> 0
J69: =+A9 -> 2023 | K69: mg/Nm3 | L69: Monthly 1/2 hourly mean | M69: Monthly 1/2 hourly maximum | N69: Monthly daily mean | O69: Monthly daily maximum
J70: A5 | K70: Jan
K71: Feb
K72: Mar
K73: Apr
K74: May
K75: Jun
K76: Jul
K77: Aug
K78: Sep
K79: Oct
K80: Nov
K81: Dec
K82: Annual | L82: =AVERAGE(L70:L81) ->  | M82: =MAX(M70:M81) -> 0 | N82: =AVERAGE(N70:N81) ->  | O82: =MAX(O70:O81) -> 0

Sheet CO 95% 10 min
A1: =+'Cover Page'!$B$29 -> Annual Performance Report 2023 | E1: =+'Cover Page'!$B$33 -> Slough Heat and Power Station
A3: Monitoring of Carbon Monoxide (10-minute avg) | E3: Whole Installation | H3: See Notes in Cell S3 | J3: =+A3 -> Monitoring of Carbon Monoxide (10-minute avg) | O3: Per Combustion Line | Q3: Notes: | S3: Notes:
A5: Please complete this tab for your plant if you have 10-minute average CO ELVs; otherwise, leave it blank and complete the CO 0.5 hourly tab
S7: User to add logic to complete Whole installation, Table A5:H18. From the data in Per Combustion Line, Table K6:Q79, subject to No. of lines installed
A8: mg/Nm3 | B8: 10-minute Reference Periods | F8: Daily Reference Periods
A9: =+'Cover Page'!C39 -> 2023 | B9: 95%ile 10-min avg CO ELV | C9: 95%ile 10-min avg maximum | D9: Monthly CO 10-min avg mean | E9: 10-min avg maximum | F9: Daily CO ELV | G9: Monthly daily mean | H9: Highest daily maximum | K9: =+A9 -> 2023 | L9: mg/Nm3 | M9: 95%ile 10-min avg maximum | N9: Monthly CO 10-min avg mean | O9: 10-min avg maximum | P9: Monthly daily mean | Q9: Monthly daily maximum
A10: Jan | B10: 150 | C10: 118.0555 | D10: 37.17087615 | E10: 201.9 | F10: 50 | G10: 37.34615385 | H10: 47 | K10: A1 | L10: Jan | M10: 118.0555 | N10: 37.17087615 | O10: 201.9 | P10: 37.34615385 | Q10: 47
A11: Feb | B11: =+B10 -> 150 | C11: 106.6325 | D11: 39.96731172 | E11: 227.38 | F11: =+F10 -> 50 | G11: 39.92857143 | H11: 47 | L11: Feb | M11: 106.6325 | N11: 39.96731172 | O11: 227.38 | P11: 39.92857143 | Q11: 47
A12: Mar | B12: =+B11 -> 150 | C12: 104.4465 | D12: 40.39848158 | E12: 237.7 | F12: =+F11 -> 50 | G12: 40.51851852 | H12: 48 | L12: Mar | M12: 104.4465 | N12: 40.39848158 | O12: 237.7 | P12: 40.51851852 | Q12: 48 | S12: Whole Installation table A5:H18:
A13: Apr | B13: 150 | C13: 101.4345 | D13: 27.72818571 | E13: 245.43 | F13: 50 | G13: 27.5 | H13: 40 | L13: Apr | M13: 101.4345 | N13: 27.72818571 | O13: 245.43 | P13: 27.5 | Q13: 40 | S13: Mean: for 10-min and daily periods use average of all operational combustion lines.
A14: May | B14: 150 | C14: 58.3465 | D14: 19.41956053 | E14: 335.78 | F14: 50 | G14: 19.5 | H14: 32 | L14: May | M14: 58.3465 | N14: 19.41956053 | O14: 335.78 | P14: 19.5 | Q14: 32
A15: Jun | B15: 150 | C15: 77.6005 | D15: 14.63021805 | E15: 256.17 | F15: 50 | G15: 14.76666667 | H15: 25 | L15: Jun | M15: 77.6005 | N15: 14.63021805 | O15: 256.17 | P15: 14.76666667 | Q15: 25
A16: Jul | B16: 150 | C16: 55.307 | D16: 14.78952381 | E16: 231.88 | F16: 50 | G16: 14.87096774 | H16: 28 | L16: Jul | M16: 55.307 | N16: 14.78952381 | O16: 231.88 | P16: 14.87096774 | Q16: 28 | S16: Maximum: for 10-min and daily periods use the highest of all operational combustion lines in any month.
A17: Aug | B17: 150 | C17: 54.004 | D17: 13.61277605 | E17: 290.8 | F17: 50 | G17: 13.56896552 | H17: 22 | L17: Aug | M17: 54.004 | N17: 13.61277605 | O17: 290.8 | P17: 13.56896552 | Q17: 22
A18: Sep | B18: 150 | C18: 70.8785 | D18: 17.93423463 | E18: 265.34 | F18: 50 | G18: 18.03703704 | H18: 30 | L18: Sep | M18: 70.8785 | N18: 17.93423463 | O18: 265.34 | P18: 18.03703704 | Q18: 30
A19: Oct | B19: 150 | C19: 98.412 | D19: 28.74461138 | E19: 270.46 | F19: 50 | G19: 28.93333333 | H19: 45 | L19: Oct | M19: 98.412 | N19: 28.74461138 | O19: 270.46 | P19: 28.93333333 | Q19: 45
A20: Nov | B20: 150 | C20: 109.7445 | D20: 34.80664835 | E20: 555.55 | F20: 50 | G20: 34.69230769 | H20: 45 | L20: Nov | M20: 109.7445 | N20: 34.80664835 | O20: 555.55 | P20: 34.69230769 | Q20: 45
A21: Dec | B21: 150 | C21: 106.612 | D21: 31.78166506 | E21: 252.47 | F21: 50 | G21: 31.74724138 | H21: 43.94 | L21: Dec | M21: 106.612 | N21: 31.78166506 | O21: 252.47 | P21: 31.74724138 | Q21: 43.94
L22: Annual | M22: =AVERAGE(M10:M21) -> 88.45616667 | O22: =MAX(O10:O21) -> 555.55 | P22: =AVERAGE(P10:P21) -> 26.78414693 | Q22: =MAX(Q10:Q21) -> 48
K24: =+A9 -> 2023 | L24: mg/Nm3 | M24: 95%ile 10-min avg maximum | N24: Monthly CO 10-min avg mean | O24: 10-min avg maximum | P24: Monthly daily mean | Q24: Monthly daily maximum
K25: A2 | L25: Jan
L26: Feb
L27: Mar
L28: Apr
L29: May
L30: Jun
L31: Jul
L32: Aug
L33: Sep
L34: Oct
L35: Nov
L36: Dec
L37: Annual | M37: =AVERAGE(M25:M36) ->  | O37: =MAX(O25:O36) -> 0 | P37: =AVERAGE(P25:P36) ->  | Q37: =MAX(Q25:Q36) -> 0
K39: =+A9 -> 2023 | L39: mg/Nm3 | M39: 95%ile 10-min avg maximum | N39: Monthly CO 10-min avg mean | O39: 10-min avg maximum | P39: Monthly daily mean | Q39: Monthly daily maximum
K40: A3 | L40: Jan
L41: Feb
L42: Mar
L43: Apr
L44: May
L45: Jun
L46: Jul
L47: Aug
L48: Sep
L49: Oct
L50: Nov
A51: Comments : | L51: Dec
A52: Environment Agency explanatory note: The 10-minute average ELV is based on the “95th percentile”. In this case this means that 95% of the 10 minute averages in the relevant 24-hour period (i.e. 137) must be below 150 mg/Nm3, and 5% (i.e. 7) are allowed to be any value above 150 mg/Nm3. Whilst we expect operators to minimise CO emissions at all times, it is perfectly acceptable for the value of the maximum 10-minute average to be above 150 mg/Nm3, provided the 95th percentile ELV has been met for that period. | L52: Annual | M52: =AVERAGE(M40:M51) ->  | O52: =MAX(O40:O51) -> 0 | P52: =AVERAGE(P40:P51) ->  | Q52: =MAX(Q40:Q51) -> 0
K54: =+A9 -> 2023 | L54: mg/Nm3 | M54: 95%ile 10-min avg maximum | N54: Monthly CO 10-min avg mean | O54: 10-min avg maximum | P54: Monthly daily mean | Q54: Monthly daily maximum
K55: A4 | L55: Jan
L56: Feb
L57: Mar
L58: Apr
L59: May
L60: Jun
L61: Jul
L62: Aug
L63: Sep
L64: Oct
L65: Nov
L66: Dec
L67: Annual | M67: =AVERAGE(M55:M66) ->  | O67: =MAX(O55:O66) -> 0 | P67: =AVERAGE(P55:P66) ->  | Q67: =MAX(Q55:Q66) -> 0
K69: =+A9 -> 2023 | L69: mg/Nm3 | M69: 95%ile 10-min avg maximum | N69: Monthly CO 10-min avg mean | O69: 10-min avg maximum | P69: Monthly daily mean | Q69: Monthly daily maximum
K70: A5 | L70: Jan
L71: Feb
L72: Mar
L73: Apr
L74: May
L75: Jun
L76: Jul
L77: Aug
L78: Sep
L79: Oct
L80: Nov
L81: Dec
L82: Annual | M82: =AVERAGE(M70:M81) ->  | O82: =MAX(O70:O81) -> 0 | P82: =AVERAGE(P70:P81) ->  | Q82: =MAX(Q70:Q81) -> 0

Sheet NH3
A1: =+'Cover Page'!$B$29 -> Annual Performance Report 2023 | E1: =+'Cover Page'!$B$33 -> Slough Heat and Power Station
A3: Monitoring of Ammnonia emissions | D3: Whole Installation | G3: See Notes in Cell Q3 | J3: =+A3 -> Monitoring of Ammnonia emissions | N3: Per Combustion Line | Q3: Notes:
Q4: User to add logic to complete Whole installation, Table A5:G18. From the data in Per Combustion Line, Table J6:O79, subject to No. of lines installed
A5: mg/Nm3 | B5: 1/2 Hourly Reference Periods | E5: Daily Reference Periods
A6: =+'Cover Page'!C39 -> 2023 | B6: 1/2 hourly NH3 ELV | C6: Monthly 1/2 hourly mean | D6: Highest 1/2 hourly maximum | E6: Daily NH3 ELV* | F6: Monthly daily mean | G6: Highest daily maximum | J6: =+A6 -> 2023 | K6: mg/Nm3 | L6: Monthly 1/2 hourly mean | M6: Monthly 1/2 hourly maximum | N6: Monthly daily mean | O6: Monthly daily maximum
A7: Jan | B7: None | E7: None | J7: A1 | K7: Jan
A8: Feb | B8: =+B7 -> None | E8: None | K8: Feb
A9: Mar | B9: =+B8 -> None | E9: None | K9: Mar | Q9: Whole Installation table A5:G18:
A10: Apr | B10: None | E10: None | K10: Apr | Q10: Mean: for 1/2 hourly and daily periods calculate mean of values across all operational combustion lines for the month
A11: May | B11: None | E11: None | K11: May
A12: Jun | B12: None | E12: None | K12: Jun
A13: Jul | B13: None | E13: None | K13: Jul | Q13: Maximum: for 1/2 hourly and daily periods use the highest value across all operational combustion lines for the month
A14: Aug | B14: None | E14: None | K14: Aug
A15: Sep | B15: None | E15: None | K15: Sep
A16: Oct | B16: None | E16: None | K16: Oct
A17: Nov | B17: None | E17: None | K17: Nov
A18: Dec | B18: None | C18: =L18 -> 0.8 | D18: =M18 -> 2.48 | E18: 15 | F18: =N18 -> 0.8 | G18: =O18 -> 2.48 | K18: Dec | L18: 0.8 | M18: 2.48 | N18: 0.8 | O18: 2.48
E19: * ELV came into force on 3 December 2023 | K19: Annual | L19: =AVERAGE(L7:L18) -> 0.8 | M19: =MAX(M7:M18) -> 2.48 | N19: =AVERAGE(N7:N18) -> 0.8 | O19: =MAX(O7:O18) -> 2.48
J21: =+A6 -> 2023 | K21: mg/Nm3 | L21: Monthly 1/2 hourly mean | M21: Monthly 1/2 hourly maximum | N21: Monthly daily mean | O21: Monthly daily maximum
J22: A2 | K22: Jan
K23: Feb
K24: Mar
K25: Apr
K26: May
K27: Jun
K28: Jul
K29: Aug
K30: Sep
K31: Oct
K32: Nov
K33: Dec
K34: Annual | L34: =AVERAGE(L22:L33) ->  | M34: =MAX(M22:M33) -> 0 | N34: =AVERAGE(N22:N33) ->  | O34: =MAX(O22:O33) -> 0
J36: =+A6 -> 2023 | K36: mg/Nm3 | L36: Monthly 1/2 hourly mean | M36: Monthly 1/2 hourly maximum | N36: Monthly daily mean | O36: Monthly daily maximum
J37: A3 | K37: Jan
K38: Feb
K39: Mar
K40: Apr
K41: May
K42: Jun
K43: Jul
K44: Aug
K45: Sep
K46: Oct
K47: Nov
A48: Comments : | K48: Dec
A49: An indicated ELV value of zero in the table above means that no ammonia limit is/was set in the permit. | K49: Annual | L49: =AVERAGE(L37:L48) ->  | M49: =MAX(M37:M48) -> 0 | N49: =AVERAGE(N37:N48) ->  | O49: =MAX(O37:O48) -> 0
J51: =+A6 -> 2023 | K51: mg/Nm3 | L51: Monthly 1/2 hourly mean | M51: Monthly 1/2 hourly maximum | N51: Monthly daily mean | O51: Monthly daily maximum
J52: A4 | K52: Jan
K53: Feb
K54: Mar
K55: Apr
K56: May
K57: Jun
K58: Jul
K59: Aug
K60: Sep
K61: Oct
K62: Nov
K63: Dec
K64: Annual | L64: =AVERAGE(L52:L63) ->  | M64: =MAX(M52:M63) -> 0 | N64: =AVERAGE(N52:N63) ->  | O64: =MAX(O52:O63) -> 0
J66: =+A6 -> 2023 | K66: mg/Nm3 | L66: Monthly 1/2 hourly mean | M66: Monthly 1/2 hourly maximum | N66: Monthly daily mean | O66: Monthly daily maximum
J67: A5 | K67: Jan
K68: Feb
K69: Mar
K70: Apr
K71: May
K72: Jun
K73: Jul
K74: Aug
K75: Sep
K76: Oct
K77: Nov
K78: Dec
K79: Annual | L79: =AVERAGE(L67:L78) ->  | M79: =MAX(M67:M78) -> 0 | N79: =AVERAGE(N67:N78) ->  | O79: =MAX(O67:O78) -> 0
